Cogmind - Beta 12 @@@ ROGUE MODE // 2023.03.30 @ 13:14:40 Player: Mr Goldstein Result: Destroyed self via exploding Nuclear Reactor Performance ------------- Evolutions (0) 0 Regions Visited (1) 200 Robots Destroyed (12) 60 Value Destroyed (205) 205 Prototype IDs (0) 0 Alien Tech Used (0) 0 Bonus (0) 0 TOTAL SCORE: 465 Bonus ------- None Cogmind --------- Core Integrity 0/250 Matter 253/300 Energy 100/100 System Corruption 0% Temperature Cool (0) Movement Rolling (90) Location -10/Materials Parts ------- > --- POWER (1) -------- (None) > --- PROPULSION (2) --- Wheel Compact Wheel > --- UTILITY (2) ------ Small Storage Unit Structural Scanner > --- WEAPON (2) ------- Assault Rifle > --- INVENTORY (8) ---- Light Ion Engine Light Ion Engine Wheel Wheel Improved Heat Sink EM Pulse Gun Light Assault Rifle Light Assault Rifle Peak State ------------ > --- POWER ------------ Light Ion Engine > --- PROPULSION ------- Wheel Compact Wheel > --- UTILITY ---------- Small Storage Unit Structural Scanner > --- WEAPON ----------- Assault Rifle Light Assault Rifle > --- INVENTORY -------- Light Ion Engine Light Ion Engine Wheel Wheel Improved Heat Sink EM Pulse Gun Light Assault Rifle Light Assault Rifle [Rating: 8] Favorites ----------- Power Light Ion Engine Engine Light Ion Engine Propulsion Wheel Wheel Wheel Utility Small Storage Unit Device Structural Scanner Storage Small Storage Unit Weapon Assault Rifle Ballistic Gun Assault Rifle Build | -11 -10 ------- Run | Jun Mat Slots Evolved . | . . Power . | . . Propulsion . | . . Utility . | . . Weapon . | . . Parts Attached 7 | 6 1 Power 1 | 1 . Engine 1 | 1 . Core . | . . Reactor . | . . Propulsion 2 | 2 . Treads . | . . Leg . | . . Wheel 2 | 2 . Hover . | . . Flight . | . . Utility 2 | 1 1 Device 1 | . 1 Storage 1 | 1 . Processor . | . . Hackware . | . . Protection . | . . Artifact . | . . Weapon 2 | 2 . Energy Gun . | . . Energy Cannon . | . . Ballistic Gun 2 | 2 . Ballistic Cannon . | . . Launcher . | . . Special Weapon . | . . Impact Weapon . | . . Slashing Weapon . | . . Piercing Weapon . | . . Special Melee Weapon . | . . Unidentified Prototypes . | . . Parts Lost 2 | . 2 Power 1 | . 1 Propulsion . | . . Utility . | . . Weapon 1 | . 1 Highest Loss Streak 2 | . 2 To Critical Strikes . | . . Average Slot Usage (%) 88 | . 88 Engine 14 | . 14 Wheel 28 | . 28 Device 3 | . 3 Storage 14 | . 14 Ballistic Gun 28 | . 28 Naked Turns . | . . Heaviest Build 12 | 11 12 Greatest Support 26 | 26 26 Greatest Overweight (x) . | . . Average Overweight (x) . | . . Largest Inventory Capacity 8 | 8 8 Average Capacity 7 | 7 8 Most Carried 8 | 5 8 Average Carried 4 | 2 5 Final Capacity 8 | 8 8 Final Carried 8 | 2 8 Class Distribution -------------------- 100% | Mutant Dominant Class ---------------- Mutant | -10/Materials Resources | -11 -10 ----------- Run | Jun Mat Matter Collected 369 | 187 182 Remotely . | . . Salvage Created 253 | . 253 Parts 23 | . 23 Haulers Intercepted . | . . Recyclers Shooed . | . . Parts Field Recycled . | . . Retrieved Matter . | . . Parts Self-Destructed . | . . Prevented . | . . Kills | -11 -10 ------- Run | Jun Mat Combat Hostiles Destroyed 8 | . 8 Guns 8 | . 8 Classes Destroyed 4 | . 4 Worker 2 | . 2 Watcher 2 | . 2 Swarmer 6 | . 6 Grunt 2 | . 2 Best Kill Streak 5 | . 5 Combat Bots Only 3 | . 3 Max Kills in Single Turn 2 | . 2 Gunslinging . | . . Exploded . | . . Melee . | . . Uniques/NPCs Destroyed . | . . Combat | -11 -10 -------- Run | Jun Mat Damage Taken 565 | . 565 Core 289 | . 289 Absorbed by Shields . | . . Core Remaining (%) 100 | 100 . Volleys Fired 39 | . 39 Largest 2 | . 2 Hottest 40 | . 40 Shots Fired 78 | . 78 Gun 78 | . 78 Cannon . | . . Launcher . | . . Special . | . . Kinetic 78 | . 78 Thermal . | . . Explosive . | . . Electromagnetic . | . . Robot Hit Streak 5 | . 5 Robot Miss Streak 3 | . 3 Penetration Max . | . . Secondary Targets 3 | . 3 Max Gunslinging Chain 1 | . 1 Shots Hit Robots 46 | . 46 Core Hits 20 | . 20 Critical Kills . | . . Critical Parts Destroyed . | . . Critical Strikes . | . . Melee Attacks . | . . Impact . | . . Slashing . | . . Piercing . | . . Sneak Attacks . | . . Combat Hostiles . | . . Follow-up Attacks . | . . Damage Inflicted 503 | . 503 Guns 503 | . 503 Cannons . | . . Explosions . | . . Melee . | . . Ramming . | . . Kinetic 503 | . 503 Thermal . | . . Explosive . | . . Electromagnetic . | . . Impact . | . . Slashing . | . . Piercing . | . . Highest Corruption . | . . Average Corruption . | . . Corruption Purged . | . . Corruption Blocked . | . . Overload Shots . | . . Overflow Damage 35 | . 35 Projectiles . | . . Explosions 35 | . 35 Melee . | . . Knockbacks . | . . Impact . | . . Kinetic . | . . Secondary . | . . Self-Inflicted Damage 226 | . 226 Shots 2 | . 2 Rammed . | . . Targets Rammed . | . . Kicked . | . . Crushed . | . . Highest Temperature 18 | . 18 Average Temperature 10 | . 10 Received Heat Transfer 141 | . 141 Siege Activations . | . . Robots Corrupted . | . . Combat Hostiles . | . . Parts Fried . | . . Impact Corruptions . | . . Robots Melted . | . . Combat Hostiles . | . . Parts Melted . | . . Heat Transferred . | . . Parts Sabotaged . | . . Parts Stolen . | . . Parts Stripped . | . . Power Chain Reactions . | . . Missiles Intercepted . | . . Alert | -11 -10 ------- Run | Jun Mat Peak Influence 309 | . 309 Initial . | . . Average 143 | . 170 Maximum Alert Level 1 | . 1 Low Security (%) 60 | 100 53 Level 1 39 | . 46 Level 2 . | . . Level 3 . | . . Level 4 . | . . Level 5 . | . . High Security . | . . Max Security . | . . Squads Dispatched 1 | . 1 Investigation . | . . Extermination . | . . Reinforcement 1 | . 1 Assault . | . . Garrison . | . . Intercept . | . . Searches Triggered . | . . Construction Impeded . | . . Haulers Reinforced . | . . Active Scanning Responses . | . . Cargo Convoy Interrupts . | . . Stealth | -11 -10 --------- Run | Jun Mat Distress Signals 1 | . 1 Communications Jammed . | . . Distress Signals . | . . Times Spotted 14 | . 14 Peak Tracking Total 4 | . 4 Tactical Retreats . | . . Traps | -11 -10 ------- Run | Jun Mat Traps Triggered . | . . Indirectly . | . . Trap Hack Attempts . | . . Triggered . | . . Disarmed . | . . Reprogrammed . | . . Reused . | . . Traps Extracted . | . . Installed . | . . Triggered . | . . Machines | -11 -10 ---------- Run | Jun Mat Machines Disabled 3 | . 3 Max in Single Turn 2 | . 2 Machines Repaired . | . . Machines Sabotaged . | . . Overloaded Fab Kills . | . . Hacking | -11 -10 --------- Run | Jun Mat Machines Accessed 3 | . 3 Terminals 3 | . 3 Fabricators . | . . Repair Stations . | . . Recycling Units . | . . Scanalyzers . | . . Garrison Access . | . . Total Hacks 7 | . 7 Successful 2 | . 2 Failed 5 | . 5 Catastrophic 1 | . 1 Database Lockouts . | . . Manual 4 | . 4 Terminals 7 | . 7 Fabricators . | . . Repair Stations . | . . Recycling Units . | . . Scanalyzers . | . . Garrison Access . | . . Terminal Hacks 1 | . 1 Robot Analysis 1 | . 1 Fabricator Hacks . | . . Repair Station Hacks . | . . Recycling Unit Hacks . | . . Scanalyzer . | . . Garrison Access Hacks . | . . Unauthorized Hacks 1 | . 1 Terminals 1 | . 1 Operators 1 | . 1 Fabricators . | . . Repair Stations . | . . Recycling Units . | . . Scanalyzers . | . . Garrison Access . | . . Data Cores Recovered . | . . Used . | . . Hacking Detections 3 | . 3 Full Trace Events . | . . Feedback Events . | . . Feedback Blocked . | . . Robot Schematics Acquired . | . . Robots Built . | . . Authchips . | . . Time . | . . Total Robot Build Rating . | . . Part Schematics Acquired . | . . Parts Built . | . . Authchips . | . . Time . | . . Total Part Build Rating . | . . Parts Repaired . | . . Time . | . . Parts Recycled . | . . Recycled Matter . | . . Retrieved Matter . | . . Retrieved Components . | . . Parts Scanalyzed . | . . Part Schematics Acquired . | . . Parts Damaged . | . . Bothacking | -11 -10 ------------ Run | Jun Mat Used RIF Installer . | . . Robots Hacked . | . . Non-combat . | . . Combat . | . . Robot Hacks Applied . | . . Relay Couplers Released . | . . Fabnet Peak Effective % . | . . Robots Rewired . | . . Allies Hacked . | . . Hacks Repelled . | . . Allies | -11 -10 -------- Run | Jun Mat Total Allies . | . . Largest Group . | . . Highest-Rated Group . | . . Highest-Rated Ally . | . . Total Orders . | . . Ally Attacks . | . . Total Damage . | . . Kills . | . . Allies Corrupted . | . . Allies Melted . | . . Intel | -11 -10 ------- Run | Jun Mat Robot Analysis Total 1 | . 1 Derelict Logs Recovered . | . . Drone Launches . | . . Drone Recoveries . | . . Exploration | -11 -10 ------------- Run | Jun Mat Turns Passed 457 | 72 385 Spaces Moved 359 | 71 288 Core 15 | 15 . Treads . | . . Legs . | . . Wheels 344 | 56 288 Hover . | . . Flight . | . . Fastest Speed 50 | 50 90 Average Speed 88 | 81 90 Slowest Speed 90 | 90 90 Overloaded Moves . | . . Propulsion Burnouts . | . . Robots Hopped . | . . Cave-ins Triggered . | . . Exploration Rate (%) 24 | 4 44 Regions Visited 1 Branch Regions . Pre-discovered Areas . | . . Known Exits Taken . | . . Unknown Exits Taken 1 | 1 . Scrap Searched . | . . Spaces Dug . | . . Terrain Destroyed 6 | . 6 Melee . | . . Projectile . | . . AOE 6 | . 6 Terrain Rammed . | . . Walls Destroyed . | . . Machines Disabled . | . . Actions | -11 -10 --------- Run | Jun Mat Total 427 | 84 343 Wait 8 | . 8 Move 358 | 70 288 Hop . | . . Pick Up 15 | 8 7 Fast Attach . | . . Attach 7 | 6 1 Detach . | . . Swap . | . . Drop . | . . Fire 39 | . 39 Melee . | . . Ram . | . . Kick . | . . Crush . | . . Escape Stasis . | . . Rewire . | . . Trap . | . . Miscellaneous . | . . Route ------- -11/Junkyard -10/Materials (discovered 3 exits: [*Mat x3]) History --------- Turn | Location | Event 33 | -11/Junkyard | Discovered new exit (range 14) 73 | -11/Junkyard | Entered Materials 140 | -10/Materials | Core integrity fell below 50% 240 | -10/Materials | Discovered new exit (range 10) 302 | -10/Materials | Build established: Mutant 322 | -10/Materials | Discovered new exit (range 15) 420 | -10/Materials | Discovered new exit (range 16) 458 | -10/Materials | Destroyed self via exploding Nuclear Reactor Last Messages --------------- 00299_ R-06 Scavenger collects Signal Interpreter. 00322_ EXIT=FOUND 00337_ Connecting with Terminal... 00342_ Acquired Structural Scanner. 00393_ K-01 Serf collects debris. 00409_ O-16 Technician: "IFF HANDSHAKE FAILED. SECURING TERMINAL." 00415_ K-01 Serf destroyed. 00420_ EXIT=FOUND 00423_ Acquired Wheel. 00424_ Acquired 26 matter. 00424_ K-01 Serf collects debris. 00426_ ALERT: Hostiles spotted, dispatching reinforcements to Terminal M007. 00427_ K-01 Serf collects debris. 00453_ Destroyed Hover Unit. 00458_ Nuclear Reactor explodes. 00458_ Lgt. Assault Rifle destroyed. 00458_ Destroyed Lgt. Assault Rifle. 00458_ Lgt. Ion Engine destroyed. 00458_ Destroyed Lgt. Ion Engine. 00458_ Nuclear Reactor explodes. Map ----- +----------------------------------------------------+ | ?????????????????????????????????????????????????? | | ?????????????????????????????????????????????????? | | ?????????????????????????????????????????????????? | | ?????????????????????????????????????????????????? | | ?????????????????????????????????????????????????? | | ?????????????????????????????????????????????????? | | ?????????????????????????????????????????????????? | | ??????????????## < ##????????????????????????????? | | ??????????????## ##????????????????????????????? | | ??????????????## ##????????????????????????????? | | ?????????????? ????????????????????????????? | | ??????????????? ????????????????????????????? | | ?????? ## ######????????????????????????? | | ?????? ####+#### ######????????????????????????? | | ?????? # ## # ????????????????????????? | | ???????? ## # ???????????????????????????? | | ????????? """ ## + ????????????????????????????? | | ????????? """ ## # ????????????????????????????? | | ??????????""" ## # ?????????????????? | | # ## #############?????????????????? | | ####+######+### # T ##?????????????????? | | # ##?????????????????? | | # ##?????????????????? | | # ##?????????????????? | | ###########+### * # ##?????????????????? | | ## ## ## @ ##?????????????????? | | ????????????? ## ## ##?????????????????? | | ??????????????## ## ##?????????????????? | | ??????????????## #### ## ????????????????? | | ??????????????## ### ##########+##?????????? | | ??????????????## o ????????? | | ??????????????## ### < ????????? | | ??????????????### #### ????????? | | ??????????????### #### ######### ##?????????? | | ???????????????## ####### ########## ##?????????? | | ???????????????## ####### ### ??????????????? | | ???????????????##+####### ### """#?????????????? | | ??????????????? * # ### """#?????????????? | | ###?????????????? # ### """#?????????????? | | #??????????????""" # ### """#?????????????? | | #??????????????"""" # ### """#?????????????? | | #?????????????""""" # # #?????????????? | | #?????? """?# """"" # # #?????????????? | | #?????? """## """ + + #?????????????? | | #?????? ## # # #?????????????? | | ########+#+############ ######## " ?????????? | | "R?????????? | | = * ""?????????? | | = != ???????? | | "" """ """ ???????? | +----------------------------------------------------+ Best States ------------- Heat Dissipation 25 Energy Generation 10 Energy Capacity 125 Matter Stores 271 Matter Capacity 300 Sight Range 16 Terrain Scan Density 10 Evasion (%) 50 Item Schematics ----------------- None Robot Schematics ------------------ None Fabricated ------------ Nothing Alien Tech Used ----------------- None Achievements -------------- None Challenges ------------ None Game ------ Seed SpliceDroneLaser Manual? 0 Play Time 00:06:31 Cumulative 47.7 hours Start 2023.03.30 @ 13:07:57 End 2023.03.30 @ 13:14:40 Sessions 1 Manual Loads 0 Difficulty Rogue Special Mode None Game No. 72 Rogue 72 Adventurer 0 Explorer 0 Win Type - Total 0 Types 0/0/0/0/0/0/0/0/0 Lore% 36 Gallery% 36 Achievement% 33 Wizard Run 0 Options --------- ASCII 0 Keyboard 0 Movement Arrows Keybinds 0 Fullscreen 1 Font 12/Smallcaps Map View 83x54 Tactical HUD 1 Map Filters NONE Filters NONE Steam 1 RUN: 3b1b3ce6-d5e1-4b7e-98b9-730eed01b9d9